fUST/lending_fUST_20251207
["ID","MTS","AMOUNT","RATE_DAILY","PERIOD"]
[396532276,1765040082618,2515.20394384,8.183e-05,2]
[396532277,1765040082652,2515.20394384,8.183e-05,2]
[396532278,1765040082692,1215.67560723,8.183e-05,2]
[396532279,1765040082716,1299.52833661,8.183e-05,2]
[396532280,1765040082746,2515.20394384,8.183e-05,2]
[396532281,1765040082775,2515.20394384,8.183e-05,2]
[396532282,1765040082804,2515.20394384,8.183e-05,2]
[396532283,1765040082839,1154.86983187,8.183e-05,2]
[396532284,1765040082863,1360.33411197,8.183e-05,2]
[396532285,1765040082904,2515.20394384,8.183e-05,2]
[396532286,1765040083117,2515.20394384,8.183e-05,2]
[396532287,1765040083181,2515.20394384,8.183e-05,2]
[396532288,1765040083244,1094.06405651,8.183e-05,2]
[396532295,1765040087707,381.68966457,0.0001311,3]
[396532303,1765040100122,150.0,6.74e-05,2]
[396532305,1765040103189,150.0,6.99e-05,2]
[396532314,1765040114264,164.23,6.6e-05,2]
[396532315,1765040114618,164.23,6.8e-05,2]
[396532316,1765040114886,164.23,6.9e-05,2]
[396532319,1765040118452,150.0,6.99e-05,2]
[396532324,1765040126409,150.0,6.99e-05,2]
[396532328,1765040132146,164.12,6.612e-05,2]
[396532333,1765040141204,150.0,6.99e-05,2]
[396532336,1765040149012,150.0,6.99e-05,2]
[396532345,1765040164385,150.0,6.99e-05,2]
[396532349,1765040172278,150.0,6.99e-05,2]
[396532355,1765040175644,150.0,6.741e-05,2]
[396532360,1765040181715,151.09,6.6e-05,2]
[396532361,1765040181853,151.09,6.8e-05,2]
[396532362,1765040182130,151.09,6.9e-05,2]
[396532365,1765040187739,150.0,6.99e-05,2]
[396532370,1765040195789,150.0,6.99e-05,2]
[396532389,1765040210416,150.0,6.99e-05,2]
[396532394,1765040218186,150.0,6.99e-05,2]
[396532405,1765040233069,150.0,6.99e-05,2]
[396532409,1765040240154,156.76,6.6e-05,2]
[396532410,1765040240432,156.76,6.8e-05,2]
[396532411,1765040240697,156.76,6.9e-05,2]
[396532413,1765040241609,150.0,6.99e-05,2]
[396532419,1765040249839,150.0,6.744e-05,2]
[396532425,1765040256813,150.0,6.99e-05,2]
[396532430,1765040264525,150.0,6.99e-05,2]
[396532437,1765040272823,150.0,6.99e-05,2]
[396532444,1765040281047,150.0,6.99e-05,2]
[396532451,1765040288836,150.0,6.99e-05,2]
[396532455,1765040296649,150.0,6.99e-05,2]
[396532459,1765040300892,151.97,6.6e-05,2]
[396532460,1765040301162,151.97,6.8e-05,2]
[396532461,1765040302158,151.97,6.9e-05,2]
[396532465,1765040305312,150.0,6.99e-05,2]
[396532467,1765040306774,-150.0,7.061e-05,2]
[396532468,1765040306797,-151.97,7.1e-05,2]
[396532469,1765040306820,-151.97,7.2e-05,2]
[396532470,1765040306844,-157.85,7.387e-05,2]
[396532471,1765040306867,-151.97,7.4e-05,2]
[396532472,1765040306890,-151.97,7.5e-05,2]
[396532473,1765040306912,-151.97,7.7e-05,2]
[396532474,1765040306936,-47.52263666,7.708e-05,2]
[396532475,1765040308920,-162.93736334,7.708e-05,2]
[396532476,1765040308944,-90.40889534,7.8e-05,2]
[396532477,1765040309160,-61.56110466,7.8e-05,2]
[396532478,1765040309700,162.0,5.8e-07,2]
[396532486,1765040325156,150.0,6.718e-05,2]
[396532487,1765040325375,150.0,7.038e-05,2]
[396532488,1765040325566,150.0,7.358e-05,2]
[396532489,1765040325973,191.71,7.678e-05,2]
[396532491,1765040326981,-151.97,7.841e-05,2]
[396532493,1765040328296,-151.97,7.92e-05,2]
[396532494,1765040328324,-33.24312385,7.998e-05,2]
[396532495,1765040329535,151.97,7.841e-05,2]
[396532497,1765040331571,-206.39687615,7.998e-05,2]
[396532498,1765040331595,-93.60312385,8e-05,2]
[396532501,1765040335342,-58.36687615,8e-05,2]
[396532502,1765040335366,-151.97,8.1e-05,2]
[396532503,1765040335391,-116.52766608,8.142e-05,2]
[396532508,1765040342049,-165.59972623,8.142e-05,2]
[396532510,1765040345301,1942.8925868,8.097e-05,2]
[396532524,1765040353358,2515.8912464,8.097e-05,2]
[396532527,1765040359202,-2515.8912464,8.179e-05,2]
[396532530,1765040361187,1500.0,8.1e-05,2]
[396532531,1765040361316,-155.76528857,8.182e-05,2]
[396532532,1765040362063,150.93,6.6e-05,2]
[396532533,1765040362462,150.93,6.8e-05,2]
[396532534,1765040362812,150.93,7e-05,2]
[396532535,1765040362840,-188.72167363,8.182e-05,2]
[396532536,1765040363086,150.93,7.1e-05,2]
[396532537,1765040363478,150.93,7.3e-05,2]
[396532539,1765040364623,150.93,7.5e-05,2]
[396532541,1765040365562,-371.27240308,8.182e-05,2]
[396532542,1765040365609,150.93,7.7e-05,2]
[396532543,1765040365701,150.93,7.8e-05,2]
[396532544,1765040365817,150.93,8e-05,2]
[396532547,1765040368157,-213.96167796,8.182e-05,2]
[396532549,1765040369581,-270.27895676,8.182e-05,2]
[396532550,1765040369604,-29.72104324,8.182e-05,2]
[396532551,1765040372058,-221.61461118,8.182e-05,2]
[396532553,1765040373548,-48.66434558,8.182e-05,2]
[396532554,1765040373574,-172.9502656,8.183e-05,2]
[396532557,1765040376826,10000.01,8.101e-05,2]
[396532558,1765040376849,10000.01,8.101e-05,2]
[396532559,1765040376872,7285.01283729,8.101e-05,2]
[396532561,1765040379926,-170.84051163,8.183e-05,2]
[396532562,1765040381288,365.04612958,8.071e-05,2]
[396532564,1765040384642,2349.95103313,8.101e-05,2]
[396532565,1765040384667,8072.01067295,8.101e-05,2]
[396532570,1765040392815,-288.01848471,8.183e-05,2]
[396532573,1765040398159,150.0,6.717e-05,2]
[396532574,1765040398554,150.0,7.037e-05,2]
[396532575,1765040398955,150.0,7.357e-05,2]
[396532577,1765040399392,150.0,7.677e-05,2]
[396532578,1765040399789,183.55,7.997e-05,2]
[396532580,1765040401295,1321.78779828,0.0001311,3]
[396532581,1765040401332,300.0,8.182e-05,2]
[396532582,1765040402548,300.0,8.182e-05,2]
[396532583,1765040403970,282.96364319,8.182e-05,2]
[396532586,1765040407767,261.48568386,8.101e-05,2]
[396532587,1765040407790,3580.54000781,8.101e-05,2]
[396532588,1765040409370,595.0,8.182e-05,2]
[396532591,1765040415206,3643.73936996,8.101e-05,2]
[396532596,1765040419268,150.51,6.6e-05,2]
[396532597,1765040419718,150.51,6.8e-05,2]
[396532598,1765040420068,150.51,7e-05,2]
[396532599,1765040420435,150.51,7.2e-05,2]
[396532600,1765040420674,150.51,7.4e-05,2]
[396532603,1765040421030,150.51,7.6e-05,2]
[396532604,1765040421278,-217.29391882,8.183e-05,2]
[396532605,1765040421332,150.51,7.8e-05,2]
[396532606,1765040421670,150.51,8e-05,2]
[396532608,1765040423727,300.0,8.101e-05,2]
[396532612,1765040431441,676.65062223,8.101e-05,2]
[396532613,1765040431464,6107.96935035,8.101e-05,2]
[396532618,1765040439414,500.0,8.182e-05,2]
[396532619,1765040439457,1051.23401885,8.182e-05,2]
[396532620,1765040439488,500.0,8.182e-05,2]
[396532621,1765040439527,500.0,8.182e-05,2]
[396532622,1765040439788,1051.23401885,8.182e-05,2]
[396532623,1765040439830,289.57261195,8.182e-05,2]
[396532625,1765040439856,761.6614069,8.182e-05,2]
[396532626,1765040439907,500.0,8.182e-05,2]
[396532627,1765040439944,1051.23401885,8.182e-05,2]
[396532628,1765040439988,571.5143708,8.182e-05,2]
[396532629,1765040440022,1051.23401885,8.182e-05,2]
[396532630,1765040440070,1051.23401885,8.182e-05,2]
[396532631,1765040440121,1051.23401885,8.182e-05,2]
[396532632,1765040440170,1051.23401885,8.182e-05,2]
[396532633,1765040440209,1051.23401885,8.182e-05,2]
[396532634,1765040440252,1051.23401885,8.182e-05,2]
[396532635,1765040440293,808.19609035,8.182e-05,2]
[396532636,1765040440319,243.0379285,8.182e-05,2]
[396532637,1765040440358,1051.23401885,8.182e-05,2]
[396532638,1765040440406,1051.23401885,8.182e-05,2]
[396532639,1765040440453,1051.23401885,8.182e-05,2]
[396532640,1765040440501,1051.23401885,8.182e-05,2]
[396532641,1765040440544,1051.23401885,8.182e-05,2]
[396532642,1765040440595,1051.23401885,8.182e-05,2]
[396532643,1765040440678,1051.23401885,8.182e-05,2]
[396532644,1765040440714,1051.23401885,8.182e-05,2]
[396532645,1765040440762,1051.23401885,8.182e-05,2]
[396532646,1765040440800,295.86590185,8.182e-05,2]
[396532647,1765040440827,755.368117,8.182e-05,2]
[396532648,1765040440884,1051.23401885,8.182e-05,2]
[396532649,1765040440934,1051.23401885,8.182e-05,2]
[396532650,1765040440967,1051.23401885,8.182e-05,2]
[396532651,1765040441011,1051.23401885,8.182e-05,2]
[396532652,1765040441049,1051.23401885,8.182e-05,2]
[396532653,1765040441088,1051.23401885,8.182e-05,2]
[396532654,1765040441127,1051.23401885,8.182e-05,2]
[396532655,1765040441174,1051.23401885,8.182e-05,2]
[396532656,1765040441240,834.7697322,8.182e-05,2]
[396532657,1765040441265,216.46428665,8.182e-05,2]
[396532658,1765040441300,1051.23401885,8.182e-05,2]
[396532659,1765040441339,1051.23401885,8.182e-05,2]
[396532660,1765040441380,1051.23401885,8.182e-05,2]
[396532661,1765040441422,1051.23401885,8.182e-05,2]
[396532662,1765040441457,1051.23401885,8.182e-05,2]
[396532663,1765040441493,1051.23401885,8.182e-05,2]
[396532664,1765040441546,1051.23401885,8.182e-05,2]
[396532665,1765040441604,1051.23401885,8.182e-05,2]
[396532666,1765040441638,1051.23401885,8.182e-05,2]
[396532667,1765040441680,322.4395437,8.182e-05,2]
[396532668,1765040441708,728.79447515,8.182e-05,2]
[396532669,1765040441743,1051.23401885,8.182e-05,2]
[396532670,1765040441810,1051.23401885,8.182e-05,2]
[396532671,1765040441873,1051.23401885,8.182e-05,2]
[396532672,1765040441943,1051.23401885,8.182e-05,2]
[396532673,1765040441992,1051.23401885,8.182e-05,2]
[396532674,1765040442030,1051.23401885,8.182e-05,2]
[396532675,1765040442071,1051.23401885,8.182e-05,2]
[396532676,1765040442114,1051.23401885,8.182e-05,2]
[396532677,1765040442199,861.34337405,8.182e-05,2]
[396532678,1765040442227,189.8906448,8.182e-05,2]
[396532679,1765040442316,1051.23401885,8.182e-05,2]
[396532680,1765040442355,1051.23401885,8.182e-05,2]
[396532683,1765040451259,-250.0,8.183e-05,2]
[396532685,1765040453861,150.4,6.612e-05,2]
[396532688,1765040457725,1480.38933643,8.182e-05,2]
[396532689,1765040457770,1480.38933643,8.182e-05,2]
[396532690,1765040457806,1480.38933643,8.182e-05,2]
[396532691,1765040457925,1480.38933643,8.182e-05,2]
[396532692,1765040458019,1480.38933643,8.182e-05,2]
[396532693,1765040458061,1480.38933643,8.182e-05,2]
[396532694,1765040458105,1480.38933643,8.182e-05,2]
[396532695,1765040458146,1480.38933643,8.182e-05,2]
[396532696,1765040458179,1480.38933643,8.182e-05,2]
[396532697,1765040458215,1480.38933643,8.182e-05,2]
[396532698,1765040458251,1480.38933643,8.182e-05,2]
[396532699,1765040458289,1480.38933643,8.182e-05,2]
[396532700,1765040458384,1480.38933643,8.182e-05,2]
[396532701,1765040458642,1480.38933643,8.182e-05,2]
[396532702,1765040458679,1480.38933643,8.182e-05,2]
[396532703,1765040458712,1480.38933643,8.182e-05,2]
[396532704,1765040458747,1480.38933643,8.182e-05,2]
[396532705,1765040458787,1480.38933643,8.182e-05,2]
[396532706,1765040458838,1480.38933643,8.182e-05,2]
[396532707,1765040458870,1480.38933643,8.182e-05,2]
[396532708,1765040458925,1117.67398142,8.182e-05,2]
[396532709,1765040458952,362.71535501,8.182e-05,2]
[396532710,1765040458989,1480.38933643,8.182e-05,2]
[396532711,1765040459021,1480.38933643,8.182e-05,2]
[396532712,1765040459055,1480.38933643,8.182e-05,2]
[396532713,1765040459111,1480.38933643,8.182e-05,2]
[396532714,1765040459174,1480.38933643,8.182e-05,2]
[396532715,1765040459227,1480.38933643,8.182e-05,2]
[396532716,1765040459260,754.95862641,8.182e-05,2]
[396532717,1765040459286,725.43071002,8.182e-05,2]
[396532718,1765040459318,1480.38933643,8.182e-05,2]
[396532719,1765040459357,1480.38933643,8.182e-05,2]
[396532720,1765040459411,1480.38933643,8.182e-05,2]
[396532721,1765040459468,1480.38933643,8.182e-05,2]
[396532722,1765040459509,1480.38933643,8.182e-05,2]
[396532723,1765040459578,1480.38933643,8.182e-05,2]
[396532724,1765040459625,392.2432714,8.182e-05,2]
[396532725,1765040459651,1088.14606503,8.182e-05,2]
[396532726,1765040459687,1480.38933643,8.182e-05,2]
[396532727,1765040459739,1480.38933643,8.182e-05,2]
[396532728,1765040459775,1480.38933643,8.182e-05,2]
[396532729,1765040459834,1480.38933643,8.182e-05,2]
[396532730,1765040460375,1480.38933643,8.182e-05,2]
[396532731,1765040460411,1480.38933643,8.182e-05,2]
[396532732,1765040460451,29.52791639,8.182e-05,2]
[396532736,1765040466784,-1458.96752606,8.1e-05,2]
[396532739,1765040471454,7082.07494788,8.1e-05,2]
[396532740,1765040471477,7692.29050003,8.1e-05,2]
[396532741,1765040472690,192.22,6.6e-05,2]
[396532743,1765040473053,192.22,6.8e-05,2]
[396532744,1765040473321,150.0,6.726e-05,2]
[396532745,1765040473358,192.22,6.9e-05,2]
[396532746,1765040473661,192.22,7.1e-05,2]
[396532750,1765040479702,150.0,6.977e-05,2]
[396532763,1765040495455,150.0,6.977e-05,2]
[396532765,1765040503719,150.0,6.977e-05,2]
[396532766,1765040511275,-150.0,7.047e-05,2]
[396532767,1765040511451,-144.35928345,7.2e-05,2]
[396532768,1765040513876,-47.86071655,7.2e-05,2]
[396532769,1765040513904,-160.26,7.367e-05,2]
[396532770,1765040513928,-29.16116744,7.4e-05,2]
[396532771,1765040515531,-163.05883256,7.4e-05,2]
[396532772,1765040515577,-113.14817634,7.5e-05,2]
[396532774,1765040518634,-79.07182366,7.5e-05,2]
[396532775,1765040518659,-187.459015,7.687e-05,2]
[396532785,1765040537886,191.67,6.6e-05,2]
[396532786,1765040538207,191.67,6.8e-05,2]
[396532788,1765040539431,191.67,6.9e-05,2]
[396532793,1765040541181,-191.67,7.1e-05,2]
[396532794,1765040541203,-8.97600934,7.2e-05,2]
[396532795,1765040541887,191.67,6.831e-05,2]
[396532809,1765040544355,-182.69399066,7.2e-05,2]
[396532810,1765040544379,-82.36591622,7.4e-05,2]
[396532819,1765040545790,-109.30408378,7.4e-05,2]
[396532820,1765040545816,-191.67,7.5e-05,2]
[396532822,1765040545841,-102.79581993,7.7e-05,2]
[396532823,1765040549591,150.0,6.718e-05,2]
[396532844,1765040556972,-150.0,7.037e-05,2]
[396532845,1765040556997,-113.18888005,7.357e-05,2]
[396532855,1765040559613,-36.81111995,7.357e-05,2]
[396532856,1765040559639,-162.65600515,7.677e-05,2]
[396532860,1765040579667,-33.31399485,7.677e-05,2]
[396532861,1765040579692,-88.87418007,7.7e-05,2]
[396532862,1765040579716,-82.67586986,7.8e-05,2]
[396532863,1765040581205,-108.99413014,7.8e-05,2]
[396532864,1765040581231,-83.89855484,7.997e-05,2]
[396532865,1765040588729,161.07144516,7.917e-05,2]
[396532866,1765040589690,-161.07144516,7.997e-05,2]
[396532867,1765040589716,-70.33368075,8.083e-05,2]
[396532868,1765040590897,-322.78191231,8.083e-05,2]
[396532870,1765040592880,-375.26479566,8.083e-05,2]
[396532872,1765040598207,185.08,6.6e-05,2]
[396532873,1765040598284,185.08,6.8e-05,2]
[396532874,1765040598361,185.08,6.9e-05,2]
[396532875,1765040598535,-242.53486861,8.002e-05,2]
[396532876,1765040598605,185.08,7.1e-05,2]
[396532877,1765040598975,185.08,7.2e-05,2]
[396532878,1765040599260,185.08,7.4e-05,2]
[396532879,1765040599599,185.08,7.5e-05,2]
[396532880,1765040599890,185.08,7.7e-05,2]
[396532881,1765040600162,185.08,7.8e-05,2]
[396532882,1765040600725,-163.60457739,8e-05,2]
[396532883,1765040603297,-21.47542261,8e-05,2]
[396532884,1765040603321,-244.10958526,8.002e-05,2]
[396532885,1765040605968,-234.59445117,8.002e-05,2]
[396532886,1765040612143,-3788.90546103,7.922e-05,2]
[396532887,1765040615250,-2422.19907794,7.922e-05,2]
[396532888,1765040621965,-3892.2444106,7.161e-05,2]
[396532889,1765040623959,150.0,6.731e-05,2]
[396532890,1765040625038,-150.0,7.052e-05,2]
[396532891,1765040625071,-150.0,7.372e-05,2]
[396532892,1765040625647,-150.62,7.693e-05,2]
[396532897,1765040643319,-300.0,8.001e-05,2]
[396532901,1765040647352,-8793.96908366,8.002e-05,2]
[396532902,1765040647615,-10000.01,8.002e-05,2]
[396532903,1765040651292,-10000.01,8.002e-05,2]
[396532904,1765040651444,-10000.01,8.002e-05,2]
[396532905,1765040651569,-10000.01,8.002e-05,2]
[396532906,1765040651675,-10000.01,8.002e-05,2]
[396532907,1765040651827,-3832.14371478,8.002e-05,2]
[396532911,1765040655336,181.34,6.6e-05,2]
[396532913,1765040655598,181.34,6.8e-05,2]
[396532914,1765040655897,181.34,6.9e-05,2]
[396532915,1765040656257,181.34,7.1e-05,2]
[396532916,1765040656489,181.34,7.2e-05,2]
[396532917,1765040656845,181.34,7.4e-05,2]
[396532919,1765040657163,181.34,7.5e-05,2]
[396532920,1765040657521,-181.34,7.7e-05,2]
[396532921,1765040657546,-99.33967314,8.013e-05,2]
[396532927,1765040666645,-181.34,7.722e-05,2]
[396532928,1765040666675,-181.34,7.8e-05,2]
[396532929,1765040666705,-181.34,8e-05,2]
[396532934,1765040677291,-88.93032686,8.013e-05,2]
[396532935,1765040677318,-258.01222888,8.083e-05,2]
[396532939,1765040679856,-163.4661529,8.083e-05,2]
[396532942,1765040684108,8911.97,8.002e-05,2]
[396532943,1765040684130,2667.06502473,8.002e-05,2]
[396532944,1765040684184,-247.16595522,8.083e-05,2]
[396532946,1765040686363,-264.43587518,8.083e-05,2]
[396532949,1765040688299,-405.63943787,8.083e-05,2]
[396532950,1765040690466,-171.42399718,8.083e-05,2]
[396532952,1765040693756,-158.2235184,8.083e-05,2]
[396532953,1765040695806,-151.1,8.083e-05,2]
[396532954,1765040696198,150.0,6.885e-05,2]
[396532955,1765040696648,150.0,7.213e-05,2]
[396532956,1765040697064,150.0,7.54e-05,2]
[396532957,1765040697473,150.0,7.868e-05,2]
[396532961,1765040698648,-345.38161815,8.083e-05,2]
[396532964,1765040701726,-239.17249684,8.083e-05,2]
[396532966,1765040704400,-173.43486946,8.083e-05,2]
[396532969,1765040709247,-267.93770927,8.083e-05,2]
[396532970,1765040711268,-196.19853118,8.082e-05,2]
[396532972,1765040713437,-103.80146882,8.082e-05,2]
[396532973,1765040713464,-47.53853118,8.083e-05,2]
[396532975,1765040715412,-264.36760307,8.083e-05,2]
[396532977,1765040717455,-189.03337398,8.083e-05,2]
[396532978,1765040717906,151.12,6.6e-05,2]
[396532979,1765040718485,151.12,6.8e-05,2]
[396532980,1765040718949,-396.94592762,8.083e-05,2]
[396532981,1765040719445,151.12,6.9e-05,2]
[396532983,1765040719769,151.12,7.1e-05,2]
[396532984,1765040720133,151.12,7.2e-05,2]
[396532985,1765040720362,151.12,7.4e-05,2]
[396532986,1765040720654,151.12,7.6e-05,2]
[396532987,1765040721166,151.12,7.7e-05,2]
[396532988,1765040721348,151.12,7.9e-05,2]
[396532990,1765040721551,151.12,8e-05,2]
[396532991,1765040722061,-214.45172086,8.083e-05,2]
[396532993,1765040724856,-331.23003834,8.083e-05,2]
[396532995,1765040725910,-417.40216267,8.083e-05,2]
[396532996,1765040728549,-207.97703437,8.083e-05,2]
[396532997,1765040730605,-170.13759692,8.083e-05,2]
[396533000,1765040734419,-311.02857796,8.083e-05,2]
[396533001,1765040735914,-415.11669852,8.083e-05,2]
[396533004,1765040737968,-363.38578412,8.083e-05,2]
[396533007,1765040744068,-213.98014802,8.082e-05,2]
[396533009,1765040745604,-180.03959258,8.082e-05,2]
[396533014,1765040750744,-55.13208884,8.082e-05,2]
[396533015,1765040750767,-105.10791116,8.082e-05,2]
[396533016,1765040752264,-176.45544528,8.082e-05,2]
[396533017,1765040755078,-169.61878785,8.082e-05,2]
[396533018,1765040758150,-48.81785571,8.082e-05,2]
[396533019,1765040758171,-120.88382825,8.082e-05,2]
[396533020,1765040760802,-379.11617175,8.082e-05,2]
[396533021,1765040760826,-151.21737776,8.082e-05,2]
[396533022,1765040764206,1433.42144181,8.001e-05,2]
[396533023,1765040764726,-228.73563262,8.081e-05,2]
[396533024,1765040767574,150.0,6.729e-05,2]
[396533025,1765040767884,-7.26436738,8.081e-05,2]
[396533026,1765040767907,-154.09575476,8.082e-05,2]
[396533027,1765040767978,150.0,7.049e-05,2]
[396533028,1765040768377,150.0,7.37e-05,2]
[396533029,1765040768797,150.0,7.69e-05,2]
[396533030,1765040769181,150.0,8.011e-05,2]
[396533031,1765040769438,-194.68686748,8.082e-05,2]
[396533032,1765040769461,-122.44141737,8.082e-05,2]
[396533033,1765040772379,-201.77467229,8.082e-05,2]
[396533034,1765040774423,-175.78391034,8.082e-05,2]
[396533035,1765040774447,-135.50205514,8.082e-05,2]
[396533036,1765040777288,-312.26497147,8.082e-05,2]
[396533037,1765040777317,151.12,6.6e-05,2]
[396533038,1765040777530,151.12,6.8e-05,2]
[396533039,1765040777806,151.12,7e-05,2]
[396533040,1765040778323,151.12,7.2e-05,2]
[396533041,1765040778565,151.12,7.4e-05,2]
[396533042,1765040778894,151.12,7.6e-05,2]
[396533043,1765040779224,151.12,7.8e-05,2]
[396533044,1765040779548,151.12,8e-05,2]
[396533045,1765040780366,-52.23297339,8.082e-05,2]
[396533046,1765040780392,-214.73792358,8.082e-05,2]
[396533047,1765040784099,-248.62361005,8.082e-05,2]
[396533048,1765040786166,-155.76528857,8.082e-05,2]
[396533049,1765040787901,2578.47770538,8.001e-05,2]
[396533052,1765040790818,-125.57497543,8.082e-05,2]
[396533053,1765040790840,-44.8260887,8.082e-05,2]
[396533054,1765040793891,-305.38198586,8.081e-05,2]
[396533055,1765040795012,-194.61801414,8.081e-05,2]
[396533056,1765040795037,-62.87144258,8.081e-05,2]
[396533057,1765040798443,-215.89145773,8.081e-05,2]
[396533058,1765040800219,-216.18121639,8.081e-05,2]
[396533059,1765040803027,-5.0558833,8.081e-05,2]
[396533060,1765040803048,-186.87864281,8.081e-05,2]
[396533061,1765040805740,-214.85766744,8.081e-05,2]
[396533062,1765040807859,-98.26368975,8.081e-05,2]
[396533063,1765040807883,-186.13460306,8.081e-05,2]
[396533064,1765040809573,-233.54778565,8.081e-05,2]
[396533065,1765040809595,-66.45221435,8.081e-05,2]
[396533066,1765040810216,1917.95085281,8e-05,2]
[396533067,1765040810238,94.35010295,8e-05,2]
[396533068,1765040813451,-268.9381939,8.081e-05,2]
[396533073,1765040815414,-164.60959175,8.081e-05,2]
[396533074,1765040815439,-157.24285756,8.081e-05,2]
[396533075,1765040818568,-262.06340631,8.081e-05,2]
[396533076,1765040822355,-300.0,8.081e-05,2]
[396533077,1765040824928,-276.13942112,8.081e-05,2]
[396533078,1765040827077,-152.72,8.081e-05,2]
[396533079,1765040829912,-190.99930578,8.081e-05,2]
[396533080,1765040831179,-191.40125381,8.081e-05,2]
[396533082,1765040832583,-190.43793505,8.081e-05,2]
[396533083,1765040834541,-143.06606578,8.081e-05,2]
[396533085,1765040834565,-121.53376426,8.081e-05,2]
[396533086,1765040834615,151.12,6.6e-05,2]
[396533087,1765040834904,151.12,6.9e-05,2]
[396533088,1765040835193,151.12,7.1e-05,2]
[396533089,1765040835538,151.12,7.4e-05,2]
[396533090,1765040836069,151.12,7.6e-05,2]
[396533091,1765040836301,151.12,7.9e-05,2]
[396533093,1765040838123,-378.46623574,8.081e-05,2]
[396533094,1765040838146,-75.73847996,8.081e-05,2]
[396533095,1765040838573,150.0,6.716e-05,2]
[396533096,1765040838924,150.0,7.036e-05,2]
[396533098,1765040839533,-260.18331902,8.081e-05,2]
[396533099,1765040840222,150.0,7.355e-05,2]
[396533100,1765040840289,150.0,7.675e-05,2]
[396533102,1765040840674,150.0,7.995e-05,2]
[396533113,1765040893421,150.34,6.6e-05,2]
[396533114,1765040893746,150.34,6.9e-05,2]
[396533115,1765040894256,150.34,7.1e-05,2]
[396533116,1765040894410,150.34,7.4e-05,2]
[396533117,1765040894724,150.34,7.6e-05,2]
[396533118,1765040895030,150.34,7.8e-05,2]
[396533119,1765040905489,1500.0,7.999e-05,2]
[396533120,1765040908631,150.0,6.715e-05,2]
[396533121,1765040909017,150.0,7.035e-05,2]
[396533122,1765040909436,150.0,7.355e-05,2]
[396533123,1765040909951,150.0,7.674e-05,2]
[396533124,1765040910361,150.0,7.994e-05,2]
[396533125,1765040927917,1500.0,7.999e-05,2]
[396533129,1765040942859,250.0,0.00013109,3]
[396533135,1765040950254,151.98,6.6e-05,2]
[396533136,1765040950303,189.9403302,7.171e-05,2]
[396533137,1765040950391,300.0,7.998e-05,2]
[396533140,1765040950611,151.98,6.9e-05,2]
[396533141,1765040950914,151.98,7.1e-05,2]
[396533142,1765040951223,151.98,7.4e-05,2]
[396533143,1765040951504,151.98,7.6e-05,2]
[396533144,1765040952506,151.98,7.9e-05,2]
[396533156,1765040973283,300.0,7.998e-05,2]
[396533161,1765040996211,300.0,7.998e-05,2]
[396533162,1765041010544,153.4,6.6e-05,2]
[396533163,1765041010815,153.4,6.9e-05,2]
[396533164,1765041011166,153.4,7.1e-05,2]
[396533165,1765041011503,153.4,7.4e-05,2]
[396533166,1765041011778,153.4,7.7e-05,2]
[396533168,1765041012058,153.4,7.9e-05,2]
[396533172,1765041018578,2618.0,7.998e-05,2]
[396533197,1765041033048,-300.0,8.079e-05,2]
[396533198,1765041033058,-300.0,8.079e-05,2]
[396533199,1765041033067,-300.0,8.079e-05,2]
[396533200,1765041033076,-218.0,8.079e-05,2]
[396533201,1765041033084,-300.0,8.079e-05,2]
[396533202,1765041033093,-1200.0,8.079e-05,2]
[396533203,1765041033102,-1200.0,8.08e-05,2]
[396533204,1765041033111,-146182.0,8.083e-05,2]
[396533205,1765041033200,-500.0,8.079e-05,2]
[396533206,1765041033209,-85.50860064,8.079e-05,2]
[396533235,1765041038212,-231.10213304,8.079e-05,2]
[396533237,1765041038222,-500.0,8.079e-05,2]
[396533239,1765041038232,-500.0,8.079e-05,2]
[396533241,1765041038242,-500.0,8.079e-05,2]
[396533243,1765041038251,-165.73477414,8.079e-05,2]
[396533245,1765041038260,-429.40744503,8.079e-05,2]
[396533248,1765041038272,-70.59255497,8.079e-05,2]
[396533250,1765041038282,-500.0,8.079e-05,2]
[396533252,1765041038292,-500.0,8.079e-05,2]